[Event "Late-Titled-Tuesday-Blitz-October-17-2023"]
[Site "Chess.com"]
[Date "2023.10.17"]
[Round "10"]
[White "Kostukov_Alex"]
[Black "GlavkonVVS"]
[Result "1-0"]
[WhiteElo "2425"]
[BlackElo "2522"]
[TimeControl "180+1"]
[EndTime "15:51:37 PDT"]
[Termination "Kostukov_Alex won by resignation"]

1. e4 {[%clk 0:02:58.1]} 1... Nf6 {[%clk 0:02:59.8]} 2. e5 {[%clk 0:02:58.5]}
2... Nd5 {[%clk 0:02:59.9]} 3. c4 {[%clk 0:02:59]} 3... Nb6 {[%clk 0:03:00.1]}
4. d4 {[%clk 0:02:59.8]} 4... d6 {[%clk 0:03:00.4]} 5. f4 {[%clk 0:03:00.4]}
5... dxe5 {[%clk 0:03:00.5]} 6. fxe5 {[%clk 0:03:01.1]} 6... c5 {[%clk
0:03:01.1]} 7. d5 {[%clk 0:03:01.3]} 7... g6 {[%clk 0:03:01]} 8. Nc3 {[%clk
0:02:56.1]} 8... Bg7 {[%clk 0:03:01]} 9. Bf4 {[%clk 0:02:56.6]} 9... O-O {[%clk
0:03:00.9]} 10. Be2 {[%clk 0:02:55.7]} 10... e6 {[%clk 0:03:00.2]} 11. Nf3
{[%clk 0:02:52.1]} 11... exd5 {[%clk 0:02:58.1]} 12. cxd5 {[%clk 0:02:52.4]}
12... Bg4 {[%clk 0:02:58.1]} 13. O-O {[%clk 0:02:31.4]} 13... N8d7 {[%clk
0:02:58.1]} 14. Re1 {[%clk 0:02:29.9]} 14... Bxf3 {[%clk 0:02:34.2]} 15. Bxf3
{[%clk 0:02:28.4]} 15... Nc4 {[%clk 0:02:34.4]} 16. e6 {[%clk 0:02:21.9]} 16...
Bd4+ {[%clk 0:02:34.4]} 17. Kh1 {[%clk 0:02:17.8]} 17... fxe6 {[%clk 0:02:34.6]}
18. Bh6 {[%clk 0:02:08.4]} 18... Qh4 {[%clk 0:01:59.4]} 19. Bxf8 {[%clk
0:02:01.8]} 19... Rxf8 {[%clk 0:01:57.2]} 20. dxe6 {[%clk 0:01:49.3]} 20... Nde5
{[%clk 0:01:53.7]} 21. Bd5 {[%clk 0:01:42.8]} 21... Kg7 {[%clk 0:01:39]} 22. Re4
{[%clk 0:01:35.8]} 22... Qf2 {[%clk 0:01:28.2]} 23. Bxc4 {[%clk 0:01:22.2]}
23... Nxc4 {[%clk 0:01:25.4]} 24. e7 {[%clk 0:01:22.2]} 24... Re8 {[%clk
0:01:23.7]} 25. Re2 {[%clk 0:01:00.8]} 25... Qf7 {[%clk 0:01:19.8]} 26. Qb3
{[%clk 0:00:58]} 26... b6 {[%clk 0:01:05.8]} 27. Rae1 {[%clk 0:00:39.1]} 27...
Bf6 {[%clk 0:00:46.2]} 28. h3 {[%clk 0:00:30.2]} 28... Nd6 {[%clk 0:00:39.4]}
29. Nd5 {[%clk 0:00:26.9]} 29... c4 {[%clk 0:00:34]} 30. Qf3 {[%clk 0:00:26.5]}
30... Nf5 {[%clk 0:00:30.5]} 31. Re4 {[%clk 0:00:20.6]} 31... Bxb2 {[%clk
0:00:24.3]} 32. Nc7 {[%clk 0:00:13.2]} 32... Rxe7 {[%clk 0:00:22.1]} 33. Rxe7
{[%clk 0:00:13.1]} 33... Nxe7 {[%clk 0:00:22.2]} 34. Qe4 {[%clk 0:00:11.8]}
34... Nf5 {[%clk 0:00:20.3]} 35. Ne6+ {[%clk 0:00:12.1]} 35... Kg8 {[%clk
0:00:18.8]} 36. Ng5 {[%clk 0:00:11.9]} 36... Qd7 {[%clk 0:00:15]} 37. Qxc4+
{[%clk 0:00:11.6]} 37... Kg7 {[%clk 0:00:15]} 38. Ne6+ {[%clk 0:00:11.1]} 38...
Kf6 {[%clk 0:00:12.8]} 39. Nf4 {[%clk 0:00:09.3]} 39... Be5 {[%clk 0:00:11.2]}
40. Nd5+ {[%clk 0:00:08.9]} 40... Kg5 {[%clk 0:00:05]} 41. Rxe5 {[%clk
0:00:08.1]} 41... Qd6 {[%clk 0:00:04.4]} 42. Qf4+ {[%clk 0:00:07.8]} 42... Kh5
{[%clk 0:00:03.6]} 43. Rxf5+ {[%clk 0:00:08]} 43... gxf5 {[%clk 0:00:03.6]} 44.
Qxd6 {[%clk 0:00:08.9]} 1-0

[Event "Late-Titled-Tuesday-Blitz-October-17-2023"]
[Site "Chess.com"]
[Date "2023.10.17"]
[Round "10"]
[White "lluiss"]
[Black "Cristi_Coca"]
[Result "1-0"]
[WhiteElo "2216"]
[BlackElo "2360"]
[TimeControl "180+1"]
[EndTime "15:51:46 PDT"]
[Termination "lluiss won by checkmate"]

1. Nf3 {[%clk 0:03:00.9]} 1... Nf6 {[%clk 0:02:58.7]} 2. d4 {[%clk 0:02:57.7]}
2... g6 {[%clk 0:02:58.9]} 3. g3 {[%clk 0:02:56.8]} 3... Bg7 {[%clk 0:02:59.4]}
4. Bg2 {[%clk 0:02:57.7]} 4... O-O {[%clk 0:03:00]} 5. O-O {[%clk 0:02:58.4]}
5... d6 {[%clk 0:03:00.7]} 6. c4 {[%clk 0:02:58.3]} 6... c5 {[%clk 0:03:01.4]}
7. Nc3 {[%clk 0:02:58]} 7... Nc6 {[%clk 0:03:00.9]} 8. dxc5 {[%clk 0:02:58.2]}
8... dxc5 {[%clk 0:03:00.9]} 9. Be3 {[%clk 0:02:58.8]} 9... Be6 {[%clk
0:02:56.3]} 10. Qa4 {[%clk 0:02:58.2]} 10... Nd4 {[%clk 0:02:50.9]} 11. Rfd1
{[%clk 0:02:36.5]} 11... Ng4 {[%clk 0:02:47.7]} 12. Bf4 {[%clk 0:02:18.7]} 12...
Qb6 {[%clk 0:02:41.2]} 13. Ng5 {[%clk 0:01:57.5]} 13... Qxb2 {[%clk 0:02:30.7]}
14. Nxe6 {[%clk 0:01:55.5]} 14... fxe6 {[%clk 0:02:28.1]} 15. Rac1 {[%clk
0:01:14.5]} 15... e5 {[%clk 0:02:25]} 16. Be3 {[%clk 0:00:40.9]} 16... Nxe3
{[%clk 0:02:23]} 17. fxe3 {[%clk 0:00:40.9]} 17... Nxe2+ {[%clk 0:02:23.6]} 18.
Nxe2 {[%clk 0:00:40.6]} 18... Qxe2 {[%clk 0:02:23.4]} 19. Rf1 {[%clk 0:00:39.7]}
19... Qxe3+ {[%clk 0:02:20.1]} 20. Kh1 {[%clk 0:00:39.3]} 20... e4 {[%clk
0:02:07.5]} 21. Qd7 {[%clk 0:00:36.3]} 21... Rxf1+ {[%clk 0:01:39.4]} 22. Rxf1
{[%clk 0:00:35.5]} 22... Rf8 {[%clk 0:01:36.4]} 23. Qe6+ {[%clk 0:00:26.7]}
23... Kh8 {[%clk 0:01:34.4]} 24. Rxf8+ {[%clk 0:00:19.7]} 24... Bxf8 {[%clk
0:01:34.3]} 25. Bxe4 {[%clk 0:00:15.6]} 25... Kg7 {[%clk 0:01:14.9]} 26. Kg2
{[%clk 0:00:13]} 26... Qe2+ {[%clk 0:01:04.7]} 27. Kh3 {[%clk 0:00:12.4]} 27...
Kh6 {[%clk 0:00:57.4]} 28. Qe5 {[%clk 0:00:10.8]} 28... Bg7 {[%clk 0:00:50]} 29.
Qf4+ {[%clk 0:00:10.6]} 29... g5 {[%clk 0:00:49.3]} 30. Qf5 {[%clk 0:00:07.2]}
30... g4+ {[%clk 0:00:25.4]} 31. Qxg4 {[%clk 0:00:05.8]} 31... Qxg4+ {[%clk
0:00:26.3]} 32. Kxg4 {[%clk 0:00:06.1]} 32... b6 {[%clk 0:00:22.2]} 33. Kf5
{[%clk 0:00:06.2]} 33... Bd4 {[%clk 0:00:18.1]} 34. h4 {[%clk 0:00:06.3]} 34...
Kg7 {[%clk 0:00:17.9]} 35. g4 {[%clk 0:00:06.5]} 35... h6 {[%clk 0:00:17.7]} 36.
g5 {[%clk 0:00:06.6]} 36... hxg5 {[%clk 0:00:18.1]} 37. hxg5 {[%clk 0:00:06.9]}
37... Be3 {[%clk 0:00:17.5]} 38. g6 {[%clk 0:00:07]} 38... Bd4 {[%clk
0:00:16.3]} 39. Ke6 {[%clk 0:00:07]} 39... a6 {[%clk 0:00:16.8]} 40. a4 {[%clk
0:00:06.5]} 40... b5 {[%clk 0:00:14.4]} 41. axb5 {[%clk 0:00:06.2]} 41... axb5
{[%clk 0:00:14.3]} 42. cxb5 {[%clk 0:00:06.5]} 42... c4 {[%clk 0:00:14.6]} 43.
Kd5 {[%clk 0:00:03.9]} 43... Bb6 {[%clk 0:00:11.2]} 44. Kxc4 {[%clk 0:00:04.1]}
44... Kf8 {[%clk 0:00:08.4]} 45. Kd5 {[%clk 0:00:04.4]} 45... Ke8 {[%clk
0:00:08.2]} 46. Kc6 {[%clk 0:00:04.7]} 46... Bg1 {[%clk 0:00:07.1]} 47. b6
{[%clk 0:00:04.8]} 47... Kd8 {[%clk 0:00:07.2]} 48. g7 {[%clk 0:00:04.1]} 48...
Bd4 {[%clk 0:00:07.2]} 49. g8=Q# {[%clk 0:00:04.2]} 1-0

[Event "Late-Titled-Tuesday-Blitz-October-17-2023"]
[Site "Chess.com"]
[Date "2023.10.17"]
[Round "10"]
[White "Msb2"]
[Black "frederiksvane"]
[Result "1-0"]
[WhiteElo "3078"]
[BlackElo "2886"]
[TimeControl "180+1"]
[EndTime "15:51:49 PDT"]
[Termination "Msb2 won by checkmate"]

1. d4 {[%clk 0:03:00.9]} 1... d5 {[%clk 0:03:00]} 2. c4 {[%clk 0:03:01.7]} 2...
e6 {[%clk 0:03:00.1]} 3. Nc3 {[%clk 0:03:02.1]} 3... Nf6 {[%clk 0:03:00]} 4.
cxd5 {[%clk 0:03:02.2]} 4... exd5 {[%clk 0:03:00.9]} 5. Bg5 {[%clk 0:03:02.7]}
5... Be7 {[%clk 0:02:59.9]} 6. e3 {[%clk 0:03:03.2]} 6... O-O {[%clk 0:02:58.8]}
7. Bd3 {[%clk 0:03:03.7]} 7... Re8 {[%clk 0:02:58.8]} 8. Nf3 {[%clk 0:03:01]}
8... h6 {[%clk 0:02:59.2]} 9. Bf4 {[%clk 0:03:00.8]} 9... c5 {[%clk 0:02:59.3]}
10. dxc5 {[%clk 0:03:01]} 10... Nc6 {[%clk 0:02:52.8]} 11. O-O {[%clk
0:03:00.1]} 11... Bxc5 {[%clk 0:02:53.1]} 12. Rc1 {[%clk 0:02:59]} 12... a6
{[%clk 0:02:06.7]} 13. h3 {[%clk 0:02:57.4]} 13... Ba7 {[%clk 0:02:04.4]} 14.
Ne2 {[%clk 0:02:54.9]} 14... Ne4 {[%clk 0:01:51.9]} 15. Nfd4 {[%clk 0:02:46.7]}
15... Bd7 {[%clk 0:01:43.4]} 16. Bxe4 {[%clk 0:02:24.1]} 16... dxe4 {[%clk
0:01:39]} 17. Nb3 {[%clk 0:01:59.9]} 17... Be6 {[%clk 0:01:34.2]} 18. Nc3 {[%clk
0:01:55.8]} 18... Nb4 {[%clk 0:01:23.1]} 19. Nd4 {[%clk 0:01:44.3]} 19... Bxd4
{[%clk 0:01:12]} 20. exd4 {[%clk 0:01:41.9]} 20... Nd3 {[%clk 0:01:12.1]} 21.
Be3 {[%clk 0:01:40.6]} 21... Nxc1 {[%clk 0:01:12.5]} 22. Qxc1 {[%clk 0:01:41.5]}
22... Rc8 {[%clk 0:01:12.7]} 23. Rd1 {[%clk 0:01:41]} 23... Bd5 {[%clk
0:01:12.7]} 24. Qd2 {[%clk 0:01:41.2]} 24... Qd7 {[%clk 0:01:12.9]} 25. Qe2
{[%clk 0:01:41]} 25... Rc6 {[%clk 0:01:12]} 26. Qh5 {[%clk 0:01:40.9]} 26... Rd8
{[%clk 0:01:08.4]} 27. Bf4 {[%clk 0:01:35.5]} 27... b5 {[%clk 0:01:06.7]} 28. a3
{[%clk 0:01:35]} 28... Rg6 {[%clk 0:01:02.4]} 29. Be3 {[%clk 0:01:25.2]} 29...
a5 {[%clk 0:00:59.9]} 30. Ne2 {[%clk 0:01:19.2]} 30... Rf6 {[%clk 0:00:53.8]}
31. Nf4 {[%clk 0:01:15.1]} 31... b4 {[%clk 0:00:50.5]} 32. axb4 {[%clk
0:01:15.2]} 32... axb4 {[%clk 0:00:51.4]} 33. Rc1 {[%clk 0:01:15.9]} 33... Rc6
{[%clk 0:00:42.5]} 34. Ra1 {[%clk 0:01:13.4]} 34... b3 {[%clk 0:00:35.4]} 35.
Ra5 {[%clk 0:01:12.3]} 35... Bc4 {[%clk 0:00:27.6]} 36. d5 {[%clk 0:01:08.1]}
36... Rf6 {[%clk 0:00:27.9]} 37. Rc5 {[%clk 0:00:48.6]} 37... Rf5 {[%clk
0:00:25.2]} 38. Qg4 {[%clk 0:00:49]} 38... Bxd5 {[%clk 0:00:19.6]} 39. Nh5
{[%clk 0:00:44.9]} 39... g6 {[%clk 0:00:19.7]} 40. Ng3 {[%clk 0:00:43.8]} 40...
h5 {[%clk 0:00:14.7]} 41. Qh4 {[%clk 0:00:40.2]} 41... Re5 {[%clk 0:00:14.9]}
42. Bf4 {[%clk 0:00:38]} 42... Re6 {[%clk 0:00:09.7]} 43. Rc7 {[%clk 0:00:36.2]}
43... Qe8 {[%clk 0:00:09.4]} 44. Nxh5 {[%clk 0:00:23.9]} 44... gxh5 {[%clk
0:00:06.8]} 45. Qxh5 {[%clk 0:00:24.8]} 45... Rd7 {[%clk 0:00:06.4]} 46. Qg4+
{[%clk 0:00:19.1]} 46... Kf8 {[%clk 0:00:05.4]} 47. Rc5 {[%clk 0:00:08]} 47...
Bb7 {[%clk 0:00:04.9]} 48. Qh4 {[%clk 0:00:08.4]} 48... Kg8 {[%clk 0:00:04.5]}
49. Rh5 {[%clk 0:00:08]} 49... Rg6 {[%clk 0:00:01.5]} 50. Rh8+ {[%clk
0:00:08.2]} 50... Kg7 {[%clk 0:00:02.1]} 51. Rxe8 {[%clk 0:00:08.8]} 51... e3
{[%clk 0:00:03]} 52. Qh8# {[%clk 0:00:08.9]} 1-0

[Event "Late-Titled-Tuesday-Blitz-October-17-2023"]
[Site "Chess.com"]
[Date "2023.10.17"]
[Round "10"]
[White "WPWPWP-2015"]
[Black "Eloist"]
[Result "0-1"]
[WhiteElo "2554"]
[BlackElo "2468"]
[TimeControl "180+1"]
[EndTime "15:51:49 PDT"]
[Termination "Eloist won by resignation"]

1. e4 {[%clk 0:03:00.9]} 1... e6 {[%clk 0:02:57.4]} 2. d4 {[%clk 0:02:59.4]}
2... d5 {[%clk 0:02:56.5]} 3. Nc3 {[%clk 0:02:59.5]} 3... Nf6 {[%clk 0:02:55.6]}
4. Bd3 {[%clk 0:02:56.2]} 4... c5 {[%clk 0:02:55]} 5. dxc5 {[%clk 0:02:53.5]}
5... dxe4 {[%clk 0:02:53.7]} 6. Nxe4 {[%clk 0:02:50.2]} 6... Nxe4 {[%clk
0:02:52.6]} 7. Bxe4 {[%clk 0:02:50]} 7... Qxd1+ {[%clk 0:02:53]} 8. Kxd1 {[%clk
0:02:50.3]} 8... f5 {[%clk 0:02:52.4]} 9. Bd3 {[%clk 0:02:45.5]} 9... Bxc5
{[%clk 0:02:52.4]} 10. Ke2 {[%clk 0:02:44.6]} 10... Nc6 {[%clk 0:02:50.2]} 11.
c3 {[%clk 0:02:41.9]} 11... e5 {[%clk 0:02:46]} 12. Be3 {[%clk 0:02:33.6]} 12...
Bxe3 {[%clk 0:02:44.2]} 13. fxe3 {[%clk 0:02:31.8]} 13... Ke7 {[%clk 0:02:40.9]}
14. e4 {[%clk 0:02:29.1]} 14... f4 {[%clk 0:02:38.1]} 15. Nf3 {[%clk 0:02:28.5]}
15... Bg4 {[%clk 0:02:32.5]} 16. h3 {[%clk 0:02:27.8]} 16... Bh5 {[%clk
0:02:31.9]} 17. Rad1 {[%clk 0:02:21.7]} 17... Rad8 {[%clk 0:02:31.5]} 18. Bb5
{[%clk 0:02:05.5]} 18... g5 {[%clk 0:02:21]} 19. Kf2 {[%clk 0:01:57.6]} 19...
Kf6 {[%clk 0:02:18.9]} 20. Rhe1 {[%clk 0:01:43.9]} 20... Bf7 {[%clk 0:02:15.3]}
21. Bxc6 {[%clk 0:01:28.6]} 21... bxc6 {[%clk 0:02:14.8]} 22. b3 {[%clk
0:01:19.8]} 22... a5 {[%clk 0:01:59.8]} 23. g3 {[%clk 0:01:06.3]} 23... a4
{[%clk 0:01:51.8]} 24. c4 {[%clk 0:01:02.6]} 24... Be6 {[%clk 0:01:44.2]} 25.
Kg2 {[%clk 0:00:42.6]} 25... Rhg8 {[%clk 0:01:39.3]} 26. g4 {[%clk 0:00:38.9]}
26... h5 {[%clk 0:01:38.2]} 27. Nh2 {[%clk 0:00:36.2]} 27... Rh8 {[%clk
0:01:30.8]} 28. Kf3 {[%clk 0:00:15.9]} 28... hxg4+ {[%clk 0:01:25.2]} 29. Nxg4+
{[%clk 0:00:15.6]} 29... Kg7 {[%clk 0:01:18.5]} 30. Rxd8 {[%clk 0:00:13.6]}
30... Rxd8 {[%clk 0:01:16.5]} 31. Nxe5 {[%clk 0:00:13.7]} 31... Bxh3 {[%clk
0:01:13.5]} 32. Nxc6 {[%clk 0:00:08.7]} 32... Rd3+ {[%clk 0:01:12.6]} 33. Ke2
{[%clk 0:00:07.3]} 33... Rg3 {[%clk 0:00:59.3]} 34. b4 {[%clk 0:00:06.2]} 34...
Rg2+ {[%clk 0:00:57.9]} 35. Kd3 {[%clk 0:00:06.1]} 35... Rxa2 {[%clk 0:00:56]}
36. b5 {[%clk 0:00:06.3]} 36... f3 {[%clk 0:00:54.7]} 37. Nd4 {[%clk 0:00:03.5]}
37... f2 {[%clk 0:00:54.2]} 38. Rc1 {[%clk 0:00:03.4]} 38... f1=Q+ {[%clk
0:00:52.9]} 39. Rxf1 {[%clk 0:00:03.5]} 39... Bxf1+ {[%clk 0:00:53.3]} 40. Kc3
{[%clk 0:00:03.9]} 40... a3 {[%clk 0:00:41.8]} 41. b6 {[%clk 0:00:03.8]} 41...
Rb2 {[%clk 0:00:41.4]} 42. Nb5 {[%clk 0:00:03.2]} 42... Bxc4 {[%clk 0:00:37.2]}
43. Kxc4 {[%clk 0:00:02.7]} 43... a2 {[%clk 0:00:35.8]} 44. b7 {[%clk
0:00:02.4]} 44... Rxb5 {[%clk 0:00:32.3]} 45. Kxb5 {[%clk 0:00:02.3]} 45... a1=Q
{[%clk 0:00:32.5]} 46. Kc6 {[%clk 0:00:01.9]} 46... Qc3+ {[%clk 0:00:31.6]} 47.
Kd7 {[%clk 0:00:02]} 47... Qd4+ {[%clk 0:00:31.2]} 48. Kc7 {[%clk 0:00:02.4]}
48... Qc4+ {[%clk 0:00:30.3]} 49. Kd7 {[%clk 0:00:02.5]} 49... Qb5+ {[%clk
0:00:29.7]} 50. Kc7 {[%clk 0:00:01.8]} 50... Qc5+ {[%clk 0:00:29.9]} 51. Kd7
{[%clk 0:00:02]} 51... Qb6 {[%clk 0:00:25.9]} 52. Kc8 {[%clk 0:00:02.3]} 52...
Qc6+ {[%clk 0:00:26.1]} 53. Kd8 {[%clk 0:00:02]} 53... Qxb7 {[%clk 0:00:25.4]}
54. e5 {[%clk 0:00:02.3]} 54... g4 {[%clk 0:00:23.7]} 55. e6 {[%clk 0:00:02.3]}
55... Kf6 {[%clk 0:00:23.7]} 56. e7 {[%clk 0:00:02.6]} 56... Qxe7+ {[%clk
0:00:23.8]} 0-1

[Event "Late-Titled-Tuesday-Blitz-October-17-2023"]
[Site "Chess.com"]
[Date "2023.10.17"]
[Round "10"]
[White "vladislavkovalev"]
[Black "BogdanDeac"]
[Result "0-1"]
[WhiteElo "2878"]
[BlackElo "2992"]
[TimeControl "180+1"]
[EndTime "15:51:52 PDT"]
[Termination "BogdanDeac won by resignation"]

1. e4 {[%clk 0:03:00.9]} 1... c6 {[%clk 0:03:00.5]} 2. Nf3 {[%clk 0:03:01.3]}
2... d5 {[%clk 0:03:01.4]} 3. d3 {[%clk 0:03:02]} 3... Nd7 {[%clk 0:03:01.8]} 4.
Nc3 {[%clk 0:02:56.6]} 4... Ngf6 {[%clk 0:03:00.9]} 5. e5 {[%clk 0:02:53.5]}
5... d4 {[%clk 0:03:00.8]} 6. exf6 {[%clk 0:02:36.9]} 6... dxc3 {[%clk
0:02:59.9]} 7. bxc3 {[%clk 0:02:37.7]} 7... Nxf6 {[%clk 0:02:59.5]} 8. Be2
{[%clk 0:02:30.4]} 8... g6 {[%clk 0:02:56.5]} 9. O-O {[%clk 0:02:29.8]} 9... Bg7
{[%clk 0:02:53.9]} 10. Bd2 {[%clk 0:02:24.9]} 10... Nd5 {[%clk 0:02:30.2]} 11.
c4 {[%clk 0:02:08.5]} 11... Nc3 {[%clk 0:02:25.1]} 12. Bxc3 {[%clk 0:01:56.9]}
12... Bxc3 {[%clk 0:02:24]} 13. Rb1 {[%clk 0:01:57.6]} 13... Qa5 {[%clk
0:02:16.6]} 14. d4 {[%clk 0:01:51.1]} 14... O-O {[%clk 0:01:41.8]} 15. Qd3
{[%clk 0:01:51]} 15... e5 {[%clk 0:00:59]} 16. Rb3 {[%clk 0:00:51]} 16... exd4
{[%clk 0:00:52.9]} 17. Nxd4 {[%clk 0:00:49.6]} 17... Bb4 {[%clk 0:00:48.5]} 18.
Bf3 {[%clk 0:00:43.2]} 18... Bc5 {[%clk 0:00:24.8]} 19. c3 {[%clk 0:00:41.7]}
19... Qxa2 {[%clk 0:00:19.3]} 20. Rbb1 {[%clk 0:00:41.7]} 20... Qa5 {[%clk
0:00:12.7]} 21. h4 {[%clk 0:00:41.6]} 21... Qd8 {[%clk 0:00:11.4]} 22. h5 {[%clk
0:00:41.5]} 22... Qf6 {[%clk 0:00:11.5]} 23. Qe3 {[%clk 0:00:36.9]} 23... Rd8
{[%clk 0:00:10]} 24. Rfd1 {[%clk 0:00:36]} 24... Bf8 {[%clk 0:00:05.4]} 25. Re1
{[%clk 0:00:20.8]} 25... a5 {[%clk 0:00:04.8]} 26. h6 {[%clk 0:00:14.2]} 26...
a4 {[%clk 0:00:04.7]} 27. g4 {[%clk 0:00:12.6]} 27... Ra5 {[%clk 0:00:04]} 28.
Kg2 {[%clk 0:00:04.8]} 28... Rg5 {[%clk 0:00:02.7]} 29. Rh1 {[%clk 0:00:04.6]}
29... Bxg4 {[%clk 0:00:02.2]} 30. Bxg4 {[%clk 0:00:05.5]} 30... Rxg4+ {[%clk
0:00:01.7]} 31. Kf1 {[%clk 0:00:06.4]} 31... Rg5 {[%clk 0:00:02.4]} 32. Rxb7
{[%clk 0:00:05.6]} 32... Re5 {[%clk 0:00:02.1]} 33. Qg3 {[%clk 0:00:01.8]} 33...
a3 {[%clk 0:00:01.9]} 34. Ra7 {[%clk 0:00:01.6]} 34... c5 {[%clk 0:00:02]} 35.
Nf3 {[%clk 0:00:01.8]} 35... Rd1+ {[%clk 0:00:02.1]} 36. Kg2 {[%clk 0:00:02.5]}
36... Rxh1 {[%clk 0:00:02.3]} 37. Qxe5 {[%clk 0:00:02.8]} 37... Qxe5 {[%clk
0:00:02.4]} 38. Nxe5 {[%clk 0:00:03.7]} 38... Ra1 {[%clk 0:00:02.7]} 39. Nxf7
{[%clk 0:00:03.1]} 39... a2 {[%clk 0:00:03.2]} 40. Ng5 {[%clk 0:00:02.7]} 40...
Bxh6 {[%clk 0:00:03]} 41. Ne6 {[%clk 0:00:03]} 41... Bd2 {[%clk 0:00:02.7]} 42.
Nxc5 {[%clk 0:00:03]} 42... Bxc3 {[%clk 0:00:03.1]} 43. Ne4 {[%clk 0:00:02.7]}
43... Bd4 {[%clk 0:00:03.3]} 44. Ra8+ {[%clk 0:00:01.6]} 44... Kg7 {[%clk
0:00:03.3]} 45. f3 {[%clk 0:00:01.7]} 45... Rg1+ {[%clk 0:00:02.8]} 46. Kh2
{[%clk 0:00:01.5]} 46... a1=Q {[%clk 0:00:03.7]} 47. Rxa1 {[%clk 0:00:01.2]}
47... Rxa1 {[%clk 0:00:04.6]} 0-1

[Event "Late-Titled-Tuesday-Blitz-October-17-2023"]
[Site "Chess.com"]
[Date "2023.10.17"]
[Round "10"]
[White "HouseOfDurin"]
[Black "ChessSwole"]
[Result "1-0"]
[WhiteElo "2280"]
[BlackElo "2705"]
[TimeControl "180+1"]
[EndTime "15:52:07 PDT"]
[Termination "HouseOfDurin won by resignation"]

1. d4 {[%clk 0:03:00.9]} 1... g6 {[%clk 0:02:58.3]} 2. h4 {[%clk 0:03:00.7]}
2... Nf6 {[%clk 0:02:54.9]} 3. Bg5 {[%clk 0:03:00]} 3... Bg7 {[%clk 0:02:50]} 4.
Bxf6 {[%clk 0:03:00.3]} 4... Bxf6 {[%clk 0:02:50]} 5. h5 {[%clk 0:03:01]} 5...
c5 {[%clk 0:02:48.8]} 6. c3 {[%clk 0:02:51.6]} 6... Qb6 {[%clk 0:02:45.9]} 7.
Qc2 {[%clk 0:02:46.5]} 7... cxd4 {[%clk 0:02:34.7]} 8. cxd4 {[%clk 0:02:47.4]}
8... Nc6 {[%clk 0:02:34.7]} 9. e3 {[%clk 0:02:47.4]} 9... d6 {[%clk 0:02:33.1]}
10. Nc3 {[%clk 0:02:37.1]} 10... Bf5 {[%clk 0:02:29.2]} 11. Bd3 {[%clk
0:02:32.6]} 11... Nb4 {[%clk 0:02:23.4]} 12. Qa4+ {[%clk 0:02:24.3]} 12... Bd7
{[%clk 0:02:23]} 13. Bb5 {[%clk 0:02:24.3]} 13... Bxb5 {[%clk 0:02:05]} 14. Qxb4
{[%clk 0:02:20.7]} 14... Bc6 {[%clk 0:01:54.4]} 15. Qxb6 {[%clk 0:02:15.3]}
15... axb6 {[%clk 0:01:55.3]} 16. f3 {[%clk 0:02:12.7]} 16... b5 {[%clk
0:01:51.3]} 17. Kd2 {[%clk 0:01:57]} 17... b4 {[%clk 0:01:50.2]} 18. Ne4 {[%clk
0:01:56.7]} 18... Bxe4 {[%clk 0:01:45]} 19. fxe4 {[%clk 0:01:57.6]} 19... O-O
{[%clk 0:01:27.3]} 20. a3 {[%clk 0:01:52.3]} 20... Ra5 {[%clk 0:01:22.6]} 21.
hxg6 {[%clk 0:01:41.7]} 21... hxg6 {[%clk 0:01:23.5]} 22. Kc2 {[%clk 0:01:20.7]}
22... Rfa8 {[%clk 0:01:15.1]} 23. Kb3 {[%clk 0:01:20.4]} 23... Rg5 {[%clk
0:01:11.1]} 24. Ne2 {[%clk 0:00:59]} 24... bxa3 {[%clk 0:01:08.8]} 25. Rxa3
{[%clk 0:00:54.2]} 25... Rxa3+ {[%clk 0:01:08.6]} 26. bxa3 {[%clk 0:00:54.9]}
26... Rxg2 {[%clk 0:01:07.3]} 27. Nf4 {[%clk 0:00:55.1]} 27... Rg3 {[%clk
0:01:03.7]} 28. Nd5 {[%clk 0:00:54.6]} 28... Bg5 {[%clk 0:01:01.5]} 29. Kc4
{[%clk 0:00:41.2]} 29... e6 {[%clk 0:01:01]} 30. Nc3 {[%clk 0:00:25.4]} 30...
Rxe3 {[%clk 0:01:00]} 31. Rb1 {[%clk 0:00:21.1]} 31... Bh4 {[%clk 0:00:49.2]}
32. Rxb7 {[%clk 0:00:19.9]} 32... Be1 {[%clk 0:00:49.2]} 33. Rb3 {[%clk
0:00:13]} 33... Bxc3 {[%clk 0:00:42.3]} 34. Rxc3 {[%clk 0:00:13.9]} 34... Rxe4
{[%clk 0:00:36.3]} 35. a4 {[%clk 0:00:13.9]} 35... e5 {[%clk 0:00:33.5]} 36. Rd3
{[%clk 0:00:13]} 36... exd4 {[%clk 0:00:21]} 37. Rxd4 {[%clk 0:00:13.9]} 37...
Re1 {[%clk 0:00:17.6]} 38. Rxd6 {[%clk 0:00:12.3]} 38... Ra1 {[%clk 0:00:17.9]}
39. Kb5 {[%clk 0:00:12.5]} 39... g5 {[%clk 0:00:17.4]} 40. a5 {[%clk 0:00:11.8]}
40... Kg7 {[%clk 0:00:17.7]} 41. a6 {[%clk 0:00:10.3]} 41... f5 {[%clk 0:00:18]}
42. Rd4 {[%clk 0:00:10.4]} 42... g4 {[%clk 0:00:14.7]} 43. Ra4 {[%clk
0:00:10.4]} 43... Re1 {[%clk 0:00:15.3]} 44. a7 {[%clk 0:00:09.4]} 44... Re5+
{[%clk 0:00:15.4]} 45. Kc4 {[%clk 0:00:08.6]} 45... Re4+ {[%clk 0:00:15.6]} 46.
Kb3 {[%clk 0:00:08.7]} 46... Re8 {[%clk 0:00:14]} 47. a8=Q {[%clk 0:00:08.6]}
47... Rxa8 {[%clk 0:00:14.4]} 48. Rxa8 {[%clk 0:00:09.5]} 48... Kf6 {[%clk
0:00:14.4]} 49. Kc3 {[%clk 0:00:09.6]} 49... Ke5 {[%clk 0:00:13.1]} 50. Kd3
{[%clk 0:00:09.5]} 50... Kf4 {[%clk 0:00:13.7]} 51. Ke2 {[%clk 0:00:09.7]} 51...
Kg3 {[%clk 0:00:14.3]} 52. Ra3+ {[%clk 0:00:08.5]} 52... Kg2 {[%clk 0:00:14.1]}
53. Ke3 {[%clk 0:00:07.9]} 53... Kh2 {[%clk 0:00:09.5]} 54. Kf4 {[%clk
0:00:07.1]} 54... Kg2 {[%clk 0:00:06.8]} 55. Kxf5 {[%clk 0:00:06.5]} 55... g3
{[%clk 0:00:07.3]} 56. Kg4 {[%clk 0:00:07]} 56... Kf2 {[%clk 0:00:07.6]} 57.
Rxg3 {[%clk 0:00:07.6]} 1-0